bitfinex-derivatives/quotes_SOLF0:USTF0_20241011
["timestamp","ask_amount","ask_price","bid_price","bid_amount"]
[1728656844930,10.69,143.75,143.69,15.61863403]
[1728656845132,3.4798,143.74,143.69,15.61863403]
[1728656845528,10.69,143.75,143.69,15.61863403]
[1728656845727,10.69,143.75,143.72,3.4801]
[1728656845728,14.1695,143.75,143.72,3.4801]
[1728656846529,3.4795,143.75,143.72,3.4801]
[1728656846724,16.72,143.77,143.69,4.92863403]
[1728656846932,20.1991,143.77,143.74,3.4797]
[1728656847328,16.72,143.77,143.72,3.4801]
[1728656847625,16.72,143.77,143.7,2.6994]
[1728656847830,3.4794,143.76,143.72,3.48]
[1728656848030,3.4794,143.76,143.7,2.6994]
[1728656848431,3.4794,143.76,143.73,3.4799]
[1728656849037,3.4799,143.73,143.71,3.4803]
[1728656849333,16.72,143.75,143.69,0.12502]
[1728656849734,3.4803,143.72,143.69,3.60572]
[1728656850035,16.72,143.75,143.69,0.12502]
[1728656850236,3.4801,143.73,143.7,3.4805]
[1728656850439,16.72,143.75,143.69,0.12502]
[1728656850642,16.72,143.77,143.69,0.12502]
[1728656850844,3.4797,143.74,143.69,0.12502]
[1728656851438,16.72,143.77,143.71,3.4802]
[1728656852244,0.6227,143.79,143.72,3.48]
[1728656852441,16.72,143.77,143.72,3.48]
[1728656852642,3.4796,143.75,143.72,3.48]
[1728656853738,3.4799,143.73,143.69,0.12502]
[1728656853946,16.72,143.75,143.69,0.12502]
[1728656854142,3.4798,143.74,143.71,3.4804]
[1728656854349,3.4798,143.74,143.69,0.12502]
[1728656855141,16.72,143.75,143.69,0.12502]
[1728656855142,3.4799,143.73,143.71,3.4804]
[1728656855742,3.4799,143.73,143.69,0.12502]
[1728656855944,3.4799,143.73,143.7,3.4805]
[1728656856539,3.4802,143.72,143.7,3.4805]
[1728656857146,16.72,143.73,143.69,0.12502]
[1728656858453,3.4805,143.71,143.69,0.12502]
[1728656862350,1.3854,143.74,143.69,0.12502]
[1728656862648,1.3854,143.74,143.7,3.4806]
[1728656862970,1.3854,143.74,143.69,0.12502]
[1728656863143,3.4802,143.72,143.69,3.60582]
[1728656866060,16.72,143.73,143.69,0.12502]
[1728656866563,10.69,143.7,143.69,0.12502]
[1728656866852,14.1706,143.7,143.69,0.12502]
[1728656867352,14.1706,143.7,143.63,12.23902]
[1728656867353,10.69,143.7,143.63,1.54902]
[1728656867557,10.69,143.65,143.63,3.60732]
[1728656867854,10.69,143.65,143.63,0.12502]
[1728656868061,3.4817,143.66,143.63,0.12502]
[1728656869561,3.4817,143.66,143.64,3.4821]
[1728656870655,16.71,143.71,143.63,0.12502]
[1728656870851,3.4812,143.68,143.66,3.4816]
[1728656871661,16.71,143.71,143.66,3.4816]
[1728656871860,16.71,143.71,143.63,0.12502]
[1728656872067,3.4808,143.7,143.65,3.4818]
[1728656872366,16.71,143.71,143.65,3.4818]
[1728656872664,3.4813,143.68,143.63,0.12502]
[1728656873569,3.4813,143.68,143.65,3.4817]
[1728656874359,3.4813,143.68,143.66,3.4815]
[1728656875970,3.4808,143.7,143.67,3.4811]
[1728656876267,16.71,143.72,143.63,16.83502]
[1728656876564,3.4806,143.7,143.67,3.4812]
[1728656877268,3.4805,143.71,143.68,3.481]
[1728656878166,3.4805,143.71,143.64,1.3222]
[1728656878363,3.4803,143.72,143.69,3.4807]
[1728656879271,3.4804,143.71,143.69,3.4807]
[1728656879464,18.0954,143.74,143.7,3.4805]
[1728656880370,18.0954,143.74,143.71,3.4803]
[1728656880371,1.3854,143.74,143.71,3.4803]
[1728656880564,1.3854,143.74,143.67,16.71]
[1728656880966,3.4803,143.72,143.69,3.4807]
[1728656884071,3.4803,143.72,143.65,16.71]
[1728656884372,3.48,143.73,143.67,16.71]
[1728656884971,3.48,143.73,143.7,3.4805]
[1728656885872,3.48,143.73,143.7,3.4804]
[1728656886276,3.4799,143.74,143.71,3.4803]
[1728656887073,0.12502,143.75,143.71,3.4803]
[1728656887276,3.4799,143.73,143.71,3.4803]
[1728656887668,0.12502,143.75,143.68,3.50752285]
[1728656887981,0.12502,143.75,143.68,4.81562285]
[1728656888269,0.12502,143.75,143.73,3.4798]
[1728656888677,0.12502,143.75,143.69,18.022]
[1728656890176,0.12502,143.75,143.73,3.4798]
[1728656890373,0.12502,143.75,143.69,18.022]
[1728656890583,0.12502,143.75,143.71,16.71]
[1728656890774,0.12502,143.75,143.73,10.69]
[1728656891073,0.12502,143.75,143.74,10.69]
[1728656891268,0.12502,143.75,143.74,14.1697]
[1728656891779,0.12502,143.81,143.74,10.69]
[1728656891985,14.29312,143.81,143.78,3.4785]
[1728656892283,10.81502,143.81,143.76,10.69]
[1728656892579,3.4783,143.8,143.77,3.4788]
[1728656894282,10.81502,143.81,143.75,10.69]
[1728656894583,10.81502,143.81,143.77,10.69]
[1728656895080,10.81502,143.81,143.78,3.4785]
[1728656895677,14.29302,143.81,143.78,3.4785]
[1728656896371,10.81502,143.81,143.78,3.4785]
[1728656896572,0.12502,143.81,143.77,10.69]
[1728656897279,0.12502,143.81,143.79,3.4783]
[1728656900880,0.12502,143.81,143.8,3.4782]
[1728656902990,0.12502,143.81,143.78,10.69]
[1728656903193,0.12502,143.81,143.79,3.4783]
[1728656905797,0.12502,143.81,143.79,3.4785]
[1728656908995,0.12502,143.81,143.78,10.69]
[1728656909200,0.12502,143.81,143.79,10.69]
[1728656909900,0.12502,143.81,143.8,3.4782]
[1728656914503,0.12502,143.87,143.8,10.69]
[1728656914706,10.81502,143.87,143.82,10.69]
[1728656915008,10.81502,143.87,143.84,3.4771]
[1728656915009,14.29172,143.87,143.84,3.4771]
[1728656915204,10.81502,143.87,143.84,3.4771]
[1728656915510,10.81502,143.87,143.82,10.69]
[1728656915702,10.81502,143.87,143.83,3.4774]
[1728656916097,3.477,143.85,143.83,3.4774]
[1728656916404,14.167,143.85,143.83,3.4774]
[1728656916604,10.69,143.85,143.82,3.4776]
[1728656916806,14.1673,143.84,143.82,3.4776]
[1728656916999,14.1673,143.84,143.79,10.69]
[1728656917195,3.4777,143.82,143.8,3.4782]
[1728656917507,10.69,143.83,143.8,3.4782]
[1728656917801,14.1676,143.83,143.8,3.4782]
[1728656918402,3.4777,143.82,143.79,3.4783]
[1728656919304,3.4777,143.82,143.8,3.4782]
[1728656920008,3.4781,143.81,143.78,3.4785]
[1728656920203,10.69,143.82,143.78,3.4785]
[1728656920508,3.478,143.81,143.78,3.4785]
[1728656923211,10.69,143.82,143.77,10.69]
[1728656923409,10.69,143.81,143.77,3.4787]
[1728656923807,3.4784,143.8,143.77,3.4787]
[1728656924103,3.4784,143.8,143.78,3.4787]
[1728656931514,0.12502,143.87,143.75,0.12502]
[1728656931515,3.4792,143.76,143.75,0.12502]
[1728656931910,14.1691,143.77,143.75,0.12502]
[1728656932917,3.4792,143.76,143.75,0.12502]
[1728656937315,3.4791,143.77,143.75,3.60442]
[1728656937511,3.4914,143.84,143.75,10.81502]
[1728656937714,10.69,143.8,143.75,10.81502]
[1728656938108,3.4786,143.79,143.76,3.479]
[1728656939115,3.4786,143.79,143.75,10.81502]
[1728656939318,10.69,143.81,143.78,3.4787]
[1728656940223,10.69,143.81,143.76,10.69]
[1728656940550,10.69,143.8,143.75,10.81502]
[1728656940952,14.1683,143.8,143.77,3.4788]
[1728656941640,14.1683,143.8,143.76,3.4791]
[1728656941641,3.4785,143.79,143.76,3.4791]
[1728656942347,3.4785,143.79,143.75,10.81502]
[1728656942643,3.4785,143.79,143.76,3.4791]
[1728656944846,3.4787,143.78,143.75,0.12502]
[1728656945044,14.1687,143.78,143.75,0.12502]
[1728656945840,14.1687,143.78,143.76,3.4791]
[1728656946242,14.1687,143.78,143.75,0.12502]
[1728656946451,3.4789,143.77,143.75,3.60432]
[1728656946652,10.69,143.78,143.75,0.12502]
[1728656946854,3.4914,143.84,143.75,0.12502]
[1728656946855,14.1692,143.76,143.75,0.12502]
[1728656953130,14.1692,143.76,143.69,12.19392]
[1728656953131,10.69,143.76,143.69,0.12502]
[1728656953428,10.69,143.7,143.69,0.12502]
[1728656953730,14.1706,143.7,143.69,0.12502]
[1728656962140,10.69,143.72,143.69,0.12502]
[1728656962529,10.69,143.72,143.7,3.4806]
[1728656964131,14.1702,143.72,143.7,3.4806]
[1728656964728,3.4802,143.72,143.69,3.60582]
[1728656964935,14.1702,143.72,143.69,3.60582]
[1728656967238,3.4802,143.72,143.69,0.12502]
[1728656967530,14.1702,143.72,143.7,3.4806]
[1728656968637,14.1702,143.72,143.69,3.60582]
[1728656969937,10.69,143.71,143.69,0.12502]
[1728656970138,14.1704,143.71,143.69,0.12502]
[1728656970336,6.9575,143.78,143.69,0.12502]
[1728656970635,14.1703,143.72,143.69,3.60582]
[1728656974838,10.69,143.73,143.69,0.12502]
[1728656975039,10.69,143.73,143.71,3.4804]
[1728656975437,14.17,143.73,143.7,3.4805]
[1728656975636,14.17,143.73,143.69,0.12502]
[1728656975934,14.17,143.73,143.7,3.4805]
[1728656976839,14.17,143.73,143.71,3.4804]
[1728656978138,10.69,143.74,143.71,3.4804]
[1728656978341,10.69,143.74,143.72,3.4801]
[1728656978530,3.4796,143.75,143.72,3.4801]
[1728656979140,3.4797,143.74,143.72,3.4801]
[1728656979838,3.4797,143.74,143.7,10.69]
[1728656980140,14.17,143.73,143.69,12.19732]
[1728656980344,10.69,143.73,143.69,12.19732]
[1728656980842,10.69,143.73,143.71,3.4803]
[1728656983041,14.1699,143.73,143.71,3.4803]
[1728656983741,14.1699,143.73,143.7,3.4805]
[1728656984345,3.4805,143.71,143.69,1.50732]
[1728656984546,10.69,143.72,143.69,1.50732]
[1728656985048,14.1703,143.72,143.69,1.50732]
[1728656985548,10.69,143.72,143.69,0.12502]
[1728656985752,3.4806,143.71,143.69,0.12502]
[1728656987341,3.4806,143.7,143.69,0.12502]
[1728656987547,14.1706,143.7,143.69,0.12502]
[1728656992241,3.4806,143.7,143.69,0.12502]
[1728656993257,6.9585,143.76,143.69,0.12502]
[1728656993561,10.69,143.72,143.69,0.12502]
[1728656994460,3.4806,143.71,143.69,0.12502]
[1728656994652,10.69,143.7,143.69,0.12502]
[1728656995156,14.1706,143.7,143.69,0.12502]
[1728657000278,10.69,143.7,143.63,0.12502]
[1728657000566,10.69,143.66,143.63,0.12502]
[1728657000770,10.69,143.68,143.63,10.81502]
[1728657000958,10.69,143.69,143.65,3.4817]
[1728657001363,10.69,143.7,143.65,10.69]
[1728657001568,1.3935,143.71,143.67,10.69]
[1728657001756,1.3935,143.71,143.64,1.3065]
[1728657001757,1.3147,143.74,143.68,10.69]
[1728657002067,10.69,143.73,143.68,10.69]
[1728657002265,10.69,143.73,143.68,14.171]
[1728657002266,3.4803,143.72,143.68,14.171]
[1728657002464,3.4803,143.72,143.68,10.69]
[1728657002662,0.12502,143.75,143.71,10.69]
[1728657002870,0.12502,143.75,143.72,3.48]
[1728657003167,0.12502,143.75,143.64,8.2704]
[1728657003168,10.81502,143.75,143.68,2.7698]
[1728657003373,3.4804,143.72,143.69,10.69]
[1728657003871,10.69,143.74,143.69,10.69]
[1728657004072,3.48,143.73,143.69,10.69]
[1728657004264,3.48,143.73,143.7,3.4806]
[1728657004461,3.48,143.73,143.69,10.69]
[1728657004665,10.69,143.73,143.69,10.69]
[1728657004864,3.4802,143.72,143.69,14.1708]
[1728657005368,10.69,143.72,143.68,1.4106]
[1728657005566,3.4805,143.71,143.68,1.4106]
[1728657005868,3.4805,143.71,143.66,10.69]
[1728657006078,10.69,143.72,143.65,3.4817]
[1728657006079,14.1711,143.68,143.65,3.4817]
[1728657006672,14.1715,143.67,143.64,3.482]
[1728657007176,3.4816,143.66,143.63,3.60722]
[1728657011474,14.1709,143.69,143.64,14.1719]
[1728657011674,10.69,143.69,143.64,10.69]
[1728657012184,3.4813,143.68,143.65,3.4817]
[1728657012781,3.4812,143.68,143.65,3.4817]
[1728657013169,10.69,143.7,143.66,14.1714]
[1728657013365,14.1708,143.7,143.66,10.69]
[1728657013581,3.4808,143.7,143.67,14.1711]
[1728657014683,14.1705,143.71,143.68,3.4809]
[1728657015068,10.69,143.71,143.67,10.69]
[1728657015268,10.69,143.72,143.69,10.69]
[1728657015471,12.0143,143.74,143.69,10.69]
[1728657015675,12.0143,143.74,143.69,14.1709]
[1728657015676,3.4803,143.72,143.69,14.1709]
[1728657015975,10.69,143.73,143.67,10.69]
[1728657016381,10.69,143.71,143.66,4.86]
[1728657016578,10.69,143.71,143.66,15.55]
[1728657016970,3.481,143.69,143.66,19.0315]
[1728657017172,10.69,143.71,143.66,15.55]
[1728657017483,3.4808,143.7,143.67,3.4813]
[1728657017678,3.4808,143.7,143.67,14.1713]
[1728657018381,3.4809,143.69,143.67,14.1713]
[1728657019880,1.3243,143.74,143.68,10.69]
[1728657020084,3.4803,143.72,143.68,10.69]
[1728657020484,10.69,143.72,143.67,10.69]
[1728657020786,3.4805,143.71,143.68,3.4809]
[1728657021183,14.1702,143.72,143.69,3.4807]
[1728657022781,12.0143,143.74,143.69,10.69]
[1728657022989,8.4998,143.74,143.71,3.4803]
[1728657025786,3.4798,143.74,143.7,10.69]
[1728657025999,10.81502,143.75,143.72,3.48]
[1728657026000,3.60452,143.75,143.72,3.48]
[1728657026290,0.12502,143.75,143.71,10.69]
[1728657026487,0.12502,143.75,143.74,3.4797]
[1728657027196,0.12502,143.75,143.73,3.4798]
[1728657028194,3.60442,143.75,143.72,14.17]
[1728657028392,10.81502,143.75,143.69,5.02]
[1728657028688,10.81502,143.75,143.7,10.69]
[1728657029089,10.69,143.74,143.69,5.02]
[1728657029681,3.48,143.73,143.69,5.02]
[1728657030286,3.48,143.73,143.7,3.4805]
[1728657030691,14.1703,143.72,143.69,5.02]
[1728657030894,14.1703,143.72,143.69,8.5007]
[1728657031681,14.1703,143.72,143.7,3.4806]
[1728657031880,3.48,143.73,143.69,15.71]
[1728657032184,3.48,143.73,143.71,3.4804]
[1728657032994,3.4798,143.74,143.71,3.4804]
[1728657033385,3.60452,143.75,143.73,3.4798]
[1728657033594,0.12502,143.75,143.71,10.69]
[1728657033896,10.81502,143.75,143.7,10.69]
[1728657034589,3.4799,143.74,143.71,3.4803]
[1728657035994,0.12502,143.75,143.7,10.69]
[1728657036197,0.12502,143.75,143.73,3.4797]
[1728657036398,0.12502,143.75,143.72,10.69]
[1728657036586,10.81502,143.75,143.69,5.02]
[1728657036792,3.4799,143.73,143.7,10.69]
[1728657038599,3.4799,143.73,143.71,3.4804]
[1728657038796,3.4799,143.73,143.67,7.50251837]
[1728657038797,10.69,143.73,143.67,7.50251837]
[1728657039004,3.4804,143.72,143.68,5.02]
[1728657039601,3.4804,143.72,143.7,3.4805]
[1728657040089,3.4801,143.73,143.71,3.4802]
[1728657042392,14.1701,143.73,143.71,3.4802]
[1728657042600,10.69,143.72,143.67,2.7039]
[1728657042894,0.12502,143.75,143.67,11.205]
[1728657042895,10.69,143.7,143.67,11.205]
[1728657043092,10.69,143.7,143.67,7.7239]
[1728657043294,3.4805,143.71,143.67,7.7239]
[1728657043896,3.4805,143.71,143.68,3.4809]
[1728657044100,3.4805,143.71,143.67,7.7239]
[1728657045007,10.69,143.72,143.67,7.7239]
[1728657045211,14.1703,143.72,143.67,7.7239]
[1728657045524,14.1703,143.72,143.67,18.4139]
[1728657046093,14.1703,143.72,143.69,3.4808]
[1728657046695,14.1707,143.7,143.67,6.1851]
[1728657046898,14.1707,143.7,143.67,2.7039]
[1728657047104,10.69,143.7,143.67,2.7039]
[1728657047298,14.1705,143.71,143.68,3.481]
[1728657052102,3.48,143.73,143.7,3.4805]
[1728657052297,10.69,143.74,143.69,10.69]
[1728657052704,0.12502,143.75,143.71,10.69]
[1728657053005,0.12502,143.81,143.73,10.69]
[1728657053206,14.1688,143.78,143.75,3.4793]
[1728657053614,10.69,143.78,143.73,10.69]
[1728657053915,10.69,143.78,143.75,3.4793]
[1728657055405,14.1687,143.78,143.75,3.4793]
[1728657055703,10.69,143.8,143.75,10.69]
[1728657055905,3.4786,143.79,143.76,3.4791]
[1728657056305,10.69,143.8,143.76,10.69]
[1728657056507,14.1684,143.8,143.77,3.4788]
[1728657056906,14.1684,143.8,143.77,3.4789]
[1728657057428,14.1684,143.8,143.76,10.69]
[1728657057609,14.1684,143.8,143.76,14.1691]
[1728657058006,3.4785,143.79,143.76,14.1691]
[1728657058403,0.12502,143.81,143.77,3.4788]
[1728657058608,3.4784,143.8,143.77,3.4788]
[1728657059313,3.4784,143.8,143.76,14.1691]
[1728657059709,0.12502,143.81,143.78,10.69]
[1728657060713,14.29312,143.81,143.78,3.4785]
[1728657060912,10.81502,143.81,143.77,15.71]
[1728657061620,14.29312,143.81,143.77,15.71]
[1728657061915,3.60312,143.81,143.77,15.71]
[1728657062715,3.4784,143.8,143.77,15.71]
[1728657063818,3.4784,143.8,143.77,19.1888]
[1728657064017,0.12502,143.81,143.78,10.69]
[1728657064223,0.12502,143.81,143.8,10.69]
[1728657064429,0.12502,143.81,143.8,14.1682]
[1728657066534,0.12502,143.87,143.8,15.71]
[1728657066831,0.12502,143.87,143.82,10.69]
[1728657067226,3.477,143.86,143.83,3.4774]
[1728657067522,10.69,143.85,143.8,15.71]
[1728657067724,10.69,143.85,143.8,19.27445125]
[1728657067928,3.4774,143.84,143.81,3.4779]
[1728657070030,3.4774,143.84,143.8,19.27445125]
[1728657070232,14.1672,143.85,143.82,3.4776]
[1728657070730,3.4772,143.85,143.82,3.4776]
[1728657071128,3.4772,143.85,143.8,8.58445125]
[1728657071129,10.81502,143.87,143.83,10.69]
[1728657071328,10.81502,143.87,143.82,10.69]
[1728657071831,3.4772,143.85,143.82,14.1677]
[1728657073137,0.12502,143.87,143.84,10.69]
[1728657073527,3.60172,143.87,143.85,3.477]
[1728657073721,0.12502,143.87,143.85,3.477]
[1728657074126,0.12502,143.87,143.84,10.69]
[1728657074321,0.12502,143.87,143.84,3.4772]
[1728657074821,3.60152,143.87,143.84,3.4772]
[1728657075024,10.69,143.86,143.83,5.02]
[1728657076432,10.69,143.86,143.81,10.69]
[1728657076630,3.4771,143.85,143.81,15.71]
[1728657077032,3.4771,143.85,143.82,3.4777]
[1728657077238,3.4773,143.84,143.82,3.4777]
[1728657077732,3.4773,143.84,143.81,15.71]
[1728657078028,3.4773,143.84,143.81,19.1879]
[1728657078235,3.4775,143.83,143.8,5.02]
[1728657078434,10.69,143.84,143.79,14.1683]
[1728657078738,10.69,143.84,143.79,15.71]
[1728657078926,3.4778,143.82,143.79,19.1883]
[1728657079429,10.69,143.83,143.78,21.9576]
[1728657080033,3.4781,143.81,143.78,21.9576]
[1728657080631,10.69,143.83,143.78,18.479]
[1728657080834,10.69,143.83,143.78,21.9576]
[1728657081330,10.69,143.83,143.78,2.769]
[1728657081530,10.69,143.83,143.78,1.4108]
[1728657081727,10.69,143.81,143.77,14.1688]
[1728657081933,3.4785,143.79,143.77,14.1688]
[1728657084537,3.4789,143.78,143.76,15.71]
[1728657084737,10.69,143.8,143.76,15.71]
[1728657085943,3.4788,143.78,143.76,19.1891]
[1728657086540,10.69,143.81,143.76,15.71]
[1728657086742,3.4783,143.8,143.78,10.69]
[1728657086945,5.1,143.82,143.78,10.69]
[1728657087147,8.5778,143.82,143.79,3.4784]
[1728657087443,8.5778,143.82,143.79,14.1684]
[1728657087638,5.1,143.82,143.77,1.3539]
[1728657087837,3.4787,143.78,143.76,5.02]
[1728657088038,10.69,143.8,143.76,5.02]
[1728657088839,3.4787,143.79,143.76,8.4992]
[1728657089038,10.69,143.8,143.76,5.02]
[1728657089744,3.4789,143.78,143.75,14.29432]
[1728657090339,10.69,143.8,143.75,10.81502]
[1728657090536,3.479,143.77,143.75,10.81502]
[1728657092043,10.69,143.79,143.75,0.12502]
[1728657092240,3.4792,143.76,143.75,0.12502]
[1728657094642,14.1692,143.76,143.75,0.12502]
[1728657099649,19.2692,143.76,143.75,0.12502]
[1728657099844,19.2692,143.76,143.75,1e-08]
[1728657101451,15.79,143.76,143.69,0.12502]
[1728657101653,1.1213,143.79,143.71,10.69]
[1728657101949,15.79,143.76,143.72,10.69]
[1728657102156,8.5793,143.76,143.73,10.69]
[1728657102658,8.5793,143.76,143.73,14.1698]
[1728657102860,8.5793,143.76,143.73,10.69]
[1728657103155,8.5793,143.76,143.73,14.1698]
[1728657103353,3.4799,143.74,143.7,1.3791]
[1728657103551,3.4799,143.74,143.7,12.0691]
[1728657103750,15.79,143.76,143.7,12.0691]
[1728657103959,3.48,143.73,143.7,12.0691]
[1728657104450,3.48,143.73,143.7,15.5496]
[1728657104653,1.44512,143.81,143.72,10.69]
[1728657104853,3.4791,143.77,143.74,14.1695]
[1728657105951,3.4789,143.78,143.75,14.1693]
[1728657106150,0.12502,143.81,143.77,10.69]
[1728657106451,0.12502,143.81,143.8,14.1682]
[1728657106654,0.12502,143.81,143.76,10.69]
[1728657107158,3.4785,143.79,143.76,14.169]
[1728657108461,3.4785,143.79,143.76,3.479]
[1728657108762,3.4783,143.8,143.77,3.4789]
[1728657109560,0.12502,143.81,143.76,3.4791]
[1728657109754,0.12502,143.81,143.75,5.1]
[1728657109962,3.4788,143.78,143.75,5.1]
[1728657110262,3.4788,143.78,143.75,8.5793]
[1728657110558,3.4788,143.78,143.75,5.1]
[1728657110759,0.12502,143.81,143.75,5.1]
[1728657111359,3.4784,143.8,143.77,3.4787]
[1728657111958,0.12502,143.81,143.77,3.4787]
[1728657112160,3.60312,143.81,143.77,3.4787]
[1728657113853,0.12502,143.81,143.79,3.4784]
[1728657115261,3.4775,143.84,143.8,3.4781]
[1728657115455,5.3,143.86,143.8,3.4781]
[1728657115859,5.3,143.86,143.79,5.3]
[1728657115860,5.3,143.86,143.81,3.4777]
[1728657116161,5.3,143.86,143.79,5.3]
[1728657116359,3.4781,143.81,143.79,5.3]
[1728657119764,3.52560659,143.83,143.75,0.12502]
[1728657119961,3.4789,143.78,143.75,3.60442]
[1728657120270,16.7,143.82,143.75,0.12502]
[1728657120473,16.7,143.82,143.76,3.479]
[1728657120474,3.4785,143.79,143.76,3.479]
[1728657120669,3.4785,143.79,143.75,0.12502]
[1728657121279,3.4785,143.79,143.76,3.4791]
[1728657122670,3.4789,143.77,143.75,3.60432]
[1728657122870,5.3,143.82,143.75,3.60432]
[1728657123174,3.4789,143.78,143.75,3.60432]
[1728657123368,5.3,143.82,143.75,0.12502]
[1728657123863,16.7,143.81,143.75,0.12502]
[1728657124069,16.7,143.8,143.75,0.12502]
[1728657124268,1.3307,143.79,143.75,0.12502]
[1728657124472,3.4792,143.76,143.75,0.12502]
[1728657132375,5.3,143.78,143.75,0.12502]
[1728657132573,3.4791,143.77,143.75,0.12502]
[1728657133171,6.6307,143.79,143.75,0.12502]
[1728657133974,3.4788,143.78,143.75,0.12502]
[1728657134171,1.3307,143.79,143.75,0.12502]
[1728657134879,3.4788,143.78,143.75,0.12502]
[1728657135177,1.3307,143.79,143.75,0.12502]
[1728657136064,3.4791,143.77,143.75,0.12502]
[1728657138872,3.4792,143.76,143.75,0.12502]
[1728657141682,3.479,143.77,143.75,3.60442]
[1728657141879,5.3,143.8,143.75,0.12502]
[1728657142376,3.4791,143.77,143.75,3.60432]
[1728657142572,5.3,143.8,143.75,0.12502]
[1728657143184,3.4792,143.76,143.75,0.12502]
[1728657143385,5.3,143.8,143.75,0.12502]
[1728657143882,3.4786,143.79,143.75,3.60432]
[1728657144082,5.3,143.8,143.75,3.60432]
[1728657144478,15.99,143.8,143.75,14.29432]
[1728657145585,15.99,143.8,143.75,10.81502]
[1728657146189,3.4791,143.77,143.75,10.81502]
[1728657146784,15.99,143.8,143.75,0.12502]
[1728657147083,3.4792,143.76,143.75,0.12502]
[1728657148489,3.4791,143.77,143.75,3.60442]
[1728657148883,15.99,143.8,143.75,0.12502]
[1728657149284,3.4792,143.76,143.75,0.12502]
[1728657152990,3.4786,143.79,143.75,3.60432]
[1728657153186,15.99,143.8,143.75,3.60432]
[1728657153881,2.7154,143.83,143.75,10.81502]
[1728657154083,11.9837,143.83,143.77,10.69]
[1728657154286,1.2937,143.83,143.8,10.69]
[1728657154481,5.32,143.85,143.8,10.69]
[1728657154684,16.01,143.85,143.8,10.69]
[1728657155084,16.01,143.85,143.8,14.1681]
[1728657155490,10.69,143.84,143.8,14.1681]
[1728657155694,3.4776,143.83,143.8,14.1681]
[1728657164203,10.69,143.83,143.79,3.4783]
[1728657164392,10.69,143.82,143.76,8.0581]
[1728657164592,10.69,143.79,143.75,17.44172]
[1728657164795,10.69,143.79,143.75,6.75172]
[1728657164993,3.4789,143.78,143.75,10.23102]
[1728657165195,3.4789,143.78,143.75,4.91102]
[1728657165896,3.4789,143.78,143.75,12.12172]
[1728657166096,3.4789,143.78,143.76,3.4792]
[1728657166297,5.32,143.81,143.77,10.69]
[1728657166604,10.69,143.82,143.78,3.4786]
[1728657167296,3.4781,143.81,143.78,3.4786]
[1728657167893,10.69,143.81,143.76,10.69]
[1728657168099,3.4784,143.8,143.77,3.4789]
[1728657168900,10.69,143.8,143.76,3.479]
[1728657169101,10.69,143.8,143.75,12.12172]
[1728657169293,10.69,143.78,143.75,0.12502]
[1728657169495,3.4791,143.77,143.75,0.12502]
[1728657170099,3.4789,143.78,143.76,3.4792]
[1728657171194,3.4789,143.78,143.75,3.60432]